bitfinex-derivatives/quotes_ETHF0:USTF0_20250726
["timestamp","ask_amount","ask_price","bid_price","bid_amount"]
[1753490938189,1.571,3716.6,3716.5,1.79784353]
[1753490938490,0.3054,3716.6,3716.5,1.79784353]
[1753490938887,1.2749,3716.6,3716.5,1.79784353]
[1753490939089,1.571,3716.6,3716.5,1.79784353]
[1753490940292,1.7686,3716.6,3716.5,1.79784353]
[1753490940990,1.7686,3716.6,3716.5,1.57124353]
[1753490941186,1.7686,3716.6,3716.5,1.23231]
[1753490941392,1.7686,3716.6,3716.5,1.56886086]
[1753490942786,0.3054,3716.6,3716.5,1.79546086]
[1753490942986,1.0587,3716.6,3716.5,1.79546086]
[1753490943588,1.367,3716.6,3716.5,1.79546086]
[1753490943994,1.571,3716.6,3716.5,1.79546086]
[1753490945787,1.7686,3716.6,3716.5,1.79546086]
[1753490946294,1.7686,3716.6,3716.5,1.56912258]
[1753490947189,0.7866,3716.9,3716.8,1.22828]
[1753490947395,0.6886,3717.0,3716.9,0.6903]
[1753490947692,2.16666719,3717.0,3716.9,0.33681258]
[1753490947888,1.62871719,3717.0,3716.9,0.87477258]
[1753490948092,2.36381719,3717.0,3716.9,0.87477258]
[1753490948689,2.90176719,3717.0,3716.9,0.87477258]
[1753490948889,2.36381719,3717.0,3716.9,0.87477258]
[1753490950490,5.57161719,3717.0,3716.9,0.87477258]
[1753490950996,6.10956719,3717.0,3716.9,0.33681258]
[1753490953891,11.10956719,3717.0,3716.9,0.33681258]
[1753490954201,0.53802,3716.5,3716.4,3.32e-06]
[1753490954498,4.39863719,3716.5,3716.4,3.32e-06]
[1753490961295,3.74582,3716.5,3716.4,3.32e-06]
[1753490961595,4.40001638,3716.5,3716.4,3.32e-06]
[1753490962495,9.40001638,3716.5,3716.4,3.32e-06]
[1753490963195,5.38001638,3716.5,3716.4,0.91020332]
[1753490963397,3.86199638,3716.5,3716.4,1.67554332]
[1753490963593,0.2873,3716.7,3716.6,1.07021]
[1753490963795,0.94138875,3716.7,3716.6,2.41475871]
[1753490964197,0.65408875,3716.7,3716.6,2.41475871]
[1753490964897,0.65408875,3716.7,3716.6,5.62255871]
[1753490965198,1.2303,3717.3,3717.2,1.67542]
[1753490965503,3.2078,3717.4,3717.3,1.67541]
[1753490965803,4.14925116,3717.4,3717.3,1.67541]
[1753490965998,4.14925116,3717.4,3717.3,2.01788072]
[1753490966603,4.44065116,3717.4,3717.3,2.01788072]
[1753490966804,4.63255116,3717.4,3717.3,2.01788072]
[1753490967003,5.37955116,3717.4,3717.3,2.01788072]
[1753490967201,4.14925116,3717.4,3717.3,2.01788072]
[1753490968504,5.57295116,3717.4,3717.3,1.79058072]
[1753490968895,5.57295116,3717.4,3717.3,1.65528072]
[1753490969098,5.57295116,3717.4,3717.3,1.79058072]
[1753490969299,6.11084116,3717.4,3717.3,1.25267072]
[1753490969499,6.11084116,3717.4,3717.3,0.34247072]
[1753490970110,2.24898,3716.8,3716.7,0.7749]
[1753490970406,2.90313116,3716.8,3716.7,1.121669]
[1753490971002,2.24898,3716.8,3716.7,1.121669]
[1753490972407,2.24898,3716.8,3716.7,0.346769]
[1753490973007,2.90328127,3716.8,3716.7,0.346769]
[1753490975006,2.24898,3716.8,3716.7,0.346769]
[1753490975909,1.21252,3716.5,3716.4,0.53220332]
[1753490976205,1.21252,3716.5,3716.4,1.27425629]
[1753490976597,2.27492,3716.5,3716.4,1.27425629]
[1753490979804,2.92911771,3716.5,3716.4,1.27425629]
[1753490980411,2.92911771,3716.5,3716.4,1.13895629]
[1753490980605,2.92911771,3716.5,3716.4,0.34675629]
[1753490981809,2.92911771,3716.5,3716.4,0.34683211]
[1753490982910,2.92902296,3716.5,3716.4,0.34683211]
[1753490984010,2.92902296,3716.5,3716.4,3.32e-06]
[1753490984210,2.92902296,3716.5,3716.4,0.34680544]
[1753490985513,2.43982296,3716.5,3716.4,0.34680544]
[1753490986113,2.92902296,3716.5,3716.4,0.34680544]
[1753490989110,2.92902296,3716.5,3716.4,0.94140544]
[1753490989414,2.92902296,3716.5,3716.4,1.14240544]
[1753490993917,2.92902296,3716.5,3716.4,1.27710544]
[1753490994311,2.92902296,3716.5,3716.4,0.94140544]
[1753490994617,2.92902296,3716.5,3716.4,0.54610544]
[1753490994816,2.92902296,3716.5,3716.4,1.14240544]
[1753490997019,2.92902296,3716.5,3716.4,1.27710544]
[1753490997318,2.92902296,3716.5,3716.4,1.50420544]
[1753490998114,2.92902296,3716.5,3716.4,1.27710544]
[1753490998315,2.92902296,3716.5,3716.4,1.27692793]
[1753490999117,2.92902296,3716.5,3716.4,0.93030332]
[1753491000717,2.92902296,3716.5,3716.4,1.15740332]
[1753491000913,2.92902296,3716.5,3716.4,1.49833822]
[1753491001518,2.92902296,3716.5,3716.4,1.27123822]
[1753491001817,0.94650296,3716.5,3716.4,2.03636822]
[1753491002214,1.13950296,3716.5,3716.4,2.03636822]
[1753491002518,1.90950296,3716.5,3716.4,2.03636822]
[1753491002714,0.94650296,3716.5,3716.4,2.03636822]
[1753491002913,0.65410296,3716.5,3716.4,2.03636822]
[1753491004622,0.94650296,3716.5,3716.4,2.03636822]
[1753491005415,0.65410296,3716.5,3716.4,2.03636822]
[1753491006116,0.2995,3716.8,3716.7,1.68989]
[1753491006315,3.9334,3717.0,3716.9,1.07246]
[1753491006517,3.9334,3717.0,3716.9,2.0310098]
[1753491006518,0.6544285,3717.0,3716.9,2.0310098]
[1753491006826,0.5379,3717.3,3717.2,0.5345]
[1753491007116,2.19609975,3717.3,3717.2,2.0309598]
[1753491007517,0.65439975,3717.3,3717.2,2.0309598]
[1753491007716,3.2078,3717.4,3717.3,0.5379]
[1753491007911,0.2995,3717.6,3717.5,1.68978]
[1753491008116,0.2995,3717.6,3717.5,2.77017851]
[1753491008423,3.5073,3717.8,3717.7,1.68975]
[1753491008623,3.5073,3717.8,3717.7,2.0308998]
[1753491009621,0.2995,3717.8,3717.7,2.0308998]
[1753491010820,1.1092,3718.1,3718.0,1.6897]
[1753491011025,1.1092,3718.1,3718.0,2.77009851]
[1753491011322,0.2995,3718.1,3718.0,2.77009851]
[1753491012121,3.2078,3718.2,3718.1,1.68969]
[1753491012419,0.504,3718.2,3718.1,2.0308398]
[1753491012625,1.5417,3718.2,3718.1,2.0308398]
[1753491013123,2.38706635,3718.2,3718.1,2.0308398]
[1753491013324,1.7356,3718.2,3718.1,2.0308398]
[1753491014124,0.8161,3718.2,3718.1,2.0308398]
[1753491014622,1.5417,3718.2,3718.1,2.0308398]
[1753491015120,0.9301,3718.5,3718.4,1.68965]
[1753491015314,3.2078,3719.0,3718.6,1.07222]
[1753491015315,0.4976,3718.7,3718.6,1.07222]
[1753491015515,1.4361,3718.7,3718.6,1.68962]
[1753491015715,2.38579676,3718.7,3718.6,1.46302]
[1753491016817,1.7356,3718.7,3718.6,1.68962]
[1753491017826,1.7356,3718.7,3718.6,1.46302]
[1753491018023,2.2733,3718.7,3718.6,1.46302]
[1753491018327,1.7356,3718.7,3718.6,1.46302]
[1753491019324,2.2733,3718.7,3718.6,0.9253]
[1753491019722,2.2733,3718.7,3718.6,1.46302]
[1753491020026,2.2733,3718.7,3718.6,0.9253]
[1753491020427,2.2733,3718.7,3718.6,0.7918]
[1753491020629,1.7356,3718.7,3718.6,1.32952]
[1753491021828,2.2733,3718.7,3718.6,1.32952]
[1753491022029,1.7356,3718.7,3718.6,1.32952]
[1753491022527,2.2733,3718.7,3718.6,1.32952]
[1753491022729,1.7356,3718.7,3718.6,1.32952]
[1753491023026,1.7356,3718.7,3718.6,2.43136871]
[1753491024123,1.0441,3718.7,3718.6,2.43136871]
[1753491024421,3.5009,3719.0,3718.9,1.07397]
[1753491024625,4.6439,3719.0,3718.9,2.43241871]
[1753491024932,4.9434,3719.0,3718.9,2.43241871]
[1753491025328,4.9434,3719.0,3718.9,2.20511871]
[1753491025628,5.48106,3719.0,3718.9,2.20511871]
[1753491026230,4.9434,3719.0,3718.9,2.20511871]
[1753491026621,5.48106,3719.0,3718.9,2.20511871]
[1753491027331,4.9434,3719.0,3718.9,2.20511871]
[1753491028335,5.48106,3719.0,3718.9,2.20511871]
[1753491028530,4.9434,3719.0,3718.9,2.20511871]
[1753491028730,5.48106,3719.0,3718.9,2.20511871]
[1753491028926,5.48106,3719.0,3718.9,1.66744871]
[1753491029230,5.48106,3719.0,3718.9,0.93364871]
[1753491029432,1.24822,3718.6,3718.5,0.3913]
[1753491029631,1.24822,3718.6,3718.5,0.88516471]
[1753491030144,1.24829,3718.2,3718.1,0.53779]
[1753491030337,2.27339,3718.2,3718.1,0.34746355]
[1753491036342,2.92638248,3718.2,3718.1,0.34746355]
[1753491039145,2.38859248,3718.2,3718.1,0.74566355]
[1753491039344,2.38859248,3718.2,3718.1,2.03115355]
[1753491039546,2.92636248,3718.2,3718.1,2.03115355]
[1753491040547,2.92636248,3718.2,3718.1,1.80415355]
[1753491041147,2.38859248,3718.2,3718.1,1.80415355]
[1753491041649,2.38859248,3718.2,3718.1,2.03115355]
[1753491041850,2.92636248,3718.2,3718.1,2.03115355]
[1753491042457,2.92636248,3718.2,3718.1,1.80415355]
[1753491042844,2.38859248,3718.2,3718.1,1.80415355]
[1753491043045,2.92636248,3718.2,3718.1,1.80415355]
[1753491044251,2.38859248,3718.2,3718.1,1.80415355]
[1753491044650,2.38859248,3718.2,3718.1,2.03115355]
[1753491045551,2.92636248,3718.2,3718.1,1.80415355]
[1753491046148,2.92636248,3718.2,3718.1,1.45669]
[1753491046754,2.38859248,3718.2,3718.1,1.45669]
[1753491047253,2.92636248,3718.2,3718.1,1.45669]
[1753491047850,2.92636248,3718.2,3718.1,1.80593853]
[1753491048045,2.38859248,3718.2,3718.1,1.80593853]
[1753491048853,2.92636248,3718.2,3718.1,1.80593853]
[1753491050156,2.38859248,3718.2,3718.1,1.80593853]
[1753491050951,2.92636248,3718.2,3718.1,1.26814853]
[1753491051551,2.92636248,3718.2,3718.1,1.26815598]
[1753491053257,2.92636248,3718.2,3718.1,1.80594598]
[1753491053759,2.38859248,3718.2,3718.1,2.03294598]
[1753491054560,1.7356,3718.2,3718.1,2.03294598]
[1753491054765,1.5417,3718.2,3718.1,2.03294598]
[1753491055059,2.73318145,3718.2,3718.1,2.03294598]
[1753491055258,2.93028145,3718.2,3718.1,1.80594598]
[1753491056658,2.18568145,3718.2,3718.1,1.58744598]
[1753491056854,1.64791145,3718.2,3718.1,1.58744598]
[1753491057158,1.64791145,3718.2,3718.1,1.81444598]
[1753491057358,2.18568145,3718.2,3718.1,1.81444598]
[1753491057658,1.64791145,3718.2,3718.1,1.58744598]
[1753491057860,1.64791145,3718.2,3718.1,1.81444598]
[1753491058057,1.15771145,3718.2,3718.1,1.81444598]
[1753491058361,0.95321145,3718.2,3718.1,1.81444598]
[1753491061360,1.63181145,3718.2,3718.1,1.81444598]
[1753491061856,2.40291145,3718.2,3718.1,2.03294598]
[1753491062163,1.7492,3718.2,3718.1,2.03294598]
[1753491063163,2.4040922,3718.2,3718.1,2.03294598]
[1753491063364,2.4040922,3718.2,3718.1,2.03635569]
[1753491064266,0.6548922,3718.2,3718.1,2.03635569]
[1753491065756,0.6548922,3718.2,3718.1,7.03635569]
[1753491065964,0.4988,3718.8,3718.7,1.6765]
[1753491066164,1.5401,3718.8,3718.7,2.02916569]
[1753491066464,1.7302,3718.8,3718.7,2.02916569]
[1753491068862,1.44689738,3719.4,3718.7,2.02916569]
[1753491068863,0.4312,3719.1,3719.0,0.73386]
[1753491071267,1.7302,3719.3,3719.2,2.5414444]
[1753491072166,2.26781,3719.3,3719.2,2.5414444]
[1753491072761,2.26781,3719.3,3719.2,2.7683444]
[1753491072762,1.7302,3719.3,3719.2,2.7683444]
[1753491072967,1.5401,3719.3,3719.2,2.7683444]
[1753491073268,0.2977,3719.3,3719.2,2.7683444]
[1753491074959,0.2977,3719.3,3719.2,2.76733806]
[1753491075663,1.2362,3719.3,3719.2,2.76733806]
[1753491075862,0.2977,3719.3,3719.2,2.76733806]
[1753491076467,1.299,3719.3,3719.2,0.35165935]
[1753491076768,2.26782,3719.3,3719.2,0.35165935]
[1753491077667,1.7302,3718.7,3718.6,0.0839]
[1753491077865,1.7302,3718.7,3718.6,0.62162]
[1753491078065,1.7302,3718.7,3718.6,1.62282]
[1753491078968,0.8027,3718.7,3718.6,1.62282]
[1753491079163,1.4325,3719.0,3718.9,2.26657]
[1753491079368,1.4325,3719.0,3718.9,3.00581871]
[1753491079871,1.97016,3719.0,3718.9,0.53767]
[1753491080060,0.6951,3718.8,3718.7,0.53769]
[1753491080468,0.6951,3718.7,3718.6,0.53771]
[1753491080768,1.9702,3718.7,3718.6,0.53771]
[1753491080968,0.53774,3718.5,3718.4,0.53774]
[1753491081167,1.23284,3718.5,3718.4,0.53774]
[1753491081671,2.26794,3718.5,3718.4,0.53774]
[1753491082665,0.73885,3718.4,3718.3,0.53775]
[1753491082874,2.26795,3718.4,3718.3,0.53775]
[1753491083068,1.7302,3718.4,3718.3,0.53775]
[1753491083268,1.7302,3718.4,3718.3,0.73395]
[1753491083570,1.7302,3718.4,3718.3,1.16945]
[1753491084064,1.7302,3718.4,3718.3,1.90869871]
[1753491084268,1.7302,3718.4,3718.3,0.53775]
[1753491084668,2.26794,3718.4,3718.3,0.53775]
[1753491085173,0.6951,3718.2,3718.1,0.84188]
[1753491085373,2.26797,3718.2,3718.1,0.53778]
[1753491085572,1.7302,3718.2,3718.1,0.53778]
[1753491086780,1.7302,3718.2,3718.1,2.26668]
[1753491088072,0.4312,3718.5,3718.1,1.56958]
[1753491088271,1.7302,3718.6,3718.5,0.6971]
[1753491088472,1.7302,3718.6,3718.5,1.7289]
[1753491088771,1.7302,3718.6,3718.5,2.26663]
[1753491089573,1.7302,3718.6,3718.5,2.61384273]
[1753491089769,2.3808325,3718.6,3718.5,2.61384273]
[1753491090183,1.7302,3718.6,3718.5,2.61384273]
[1753491091372,1.94967001,3718.6,3718.5,1.87094273]
[1753491091568,2.38087001,3718.6,3718.5,2.30644273]
[1753491092279,2.38087001,3718.6,3718.5,2.61384273]
[1753491092580,2.38087001,3718.6,3718.5,2.3253416]
[1753491092971,1.1263,3718.9,3718.8,1.23479]
[1753491093172,1.77712016,3718.9,3718.8,3.35675031]
[1753491093377,1.77712016,3718.9,3718.8,0.3509116]
[1753491093674,2.38102016,3718.9,3718.8,0.8886016]
[1753491094973,1.93372016,3718.9,3718.8,0.8886016]
[1753491095279,2.40152016,3718.9,3718.8,0.8886016]
[1753491098179,2.93919016,3718.9,3718.8,0.3509116]
[1753491098380,2.93919016,3718.9,3718.8,0.8886016]
[1753491100679,2.93919016,3718.9,3718.8,0.3509116]
[1753491103080,2.93919016,3718.9,3718.8,0.8886016]
[1753491103383,2.93919016,3718.9,3718.8,0.3509116]
[1753491106684,4.38608754,3718.9,3718.8,0.3509116]
[1753491106881,4.38608754,3718.9,3718.4,0.53774]
[1753491106882,1.22373,3718.5,3718.4,0.73554]
[1753491107076,2.92175016,3718.5,3718.4,2.60256608]
[1753491107279,2.92175016,3718.5,3718.4,2.06482608]
[1753491109086,2.92175016,3718.5,3718.4,2.60256608]
[1753491109587,2.38402016,3718.5,3718.4,2.60256608]
[1753491110391,0.65082016,3718.5,3718.4,2.60256608]
[1753491110588,0.65203445,3718.7,3718.6,0.9854]
[1753491110892,0.65203445,3718.7,3718.6,3.34178479]
[1753491111691,0.65203445,3718.7,3718.6,3.34216338]
[1753491112992,0.65203445,3718.7,3718.6,3.34219283]
[1753491115291,1.69923445,3718.7,3718.6,3.34219283]
[1753491115691,1.23143445,3718.7,3718.6,3.34219283]
[1753491115892,0.65203445,3718.7,3718.6,3.34219283]
[1753491117298,23.44,3719.9,3719.1,2.25124]
[1753491117299,1.7332,3719.2,3719.1,2.25124]
[1753491117499,2.38567936,3719.2,3719.1,3.34212283]
[1753491120300,0.65247936,3719.2,3719.1,3.34212283]
[1753491120998,0.65247936,3719.2,3719.1,2.99048871]
[1753491121199,0.65247936,3719.2,3719.1,3.34197604]
[1753491121503,1.69967936,3719.2,3719.1,3.34197604]
[1753491121803,2.38567936,3719.2,3719.1,1.08692733]
[1753491122303,2.38567936,3719.2,3719.1,1.51532733]
[1753491122498,2.92330936,3719.2,3719.1,0.88912733]
[1753491122900,2.38567936,3719.2,3719.1,0.88912733]
[1753491123497,2.92330936,3719.2,3719.1,0.88912733]
[1753491123697,2.38567936,3719.2,3719.1,0.88912733]
[1753491124095,2.92330936,3719.2,3719.1,0.88912733]
[1753491124504,2.38567936,3719.2,3719.1,0.88912733]
[1753491124704,2.38567936,3719.2,3719.1,1.51532733]
[1753491125004,2.38567936,3719.2,3719.1,2.60272733]
[1753491126707,2.38567936,3719.2,3719.1,2.60236643]
[1753491129597,2.38567936,3719.2,3719.1,2.60226153]
[1753491131005,2.92330936,3719.2,3719.1,2.60226153]
[1753491131205,2.92330936,3719.2,3719.1,0.35102153]
[1753491132308,2.92330936,3719.2,3719.1,0.88866153]
[1753491132709,2.38567936,3719.2,3719.1,1.50436153]
[1753491133304,2.38567936,3719.2,3719.1,2.63216153]
[1753491133705,2.92330936,3719.2,3719.1,2.63216153]
[1753491133906,2.38567936,3719.2,3719.1,2.63216153]
[1753491134205,2.92330936,3719.2,3719.1,2.63216153]
[1753491134911,2.27083,3719.2,3719.1,2.63216153]
[1753491135106,1.7332,3719.2,3719.1,2.63216153]
[1753491136800,2.27083,3719.2,3719.1,2.63216153]
[1753491137405,2.92269686,3719.2,3719.1,2.63216153]
[1753491137811,2.27083,3719.2,3719.1,2.63216153]
[1753491138008,1.7332,3719.2,3719.1,2.63216153]
[1753491138508,2.38527487,3719.2,3719.1,2.63216153]
[1753491138911,2.27083,3719.2,3719.1,2.63216153]
[1753491139106,2.92293738,3719.2,3719.1,2.09452153]
[1753491139711,2.92293738,3719.2,3719.1,1.70216153]
[1753491139907,2.92293738,3719.2,3719.1,0.35102153]
[1753491141615,2.92293738,3719.2,3719.1,0.96672153]
[1753491143310,2.92293738,3719.2,3719.1,1.27612153]
[1753491144015,2.92293738,3719.2,3719.1,1.27642819]
[1753491144616,2.92293738,3719.2,3719.1,0.35132819]
[1753491147622,2.92293738,3719.2,3719.1,0.77752819]
[1753491147921,2.92293738,3719.2,3719.1,0.6157]
[1753491148623,2.92293738,3719.2,3718.9,0.6202]
[1753491148624,2.29976,3719.0,3718.9,0.1895]
[1753491148922,2.9529627,3719.0,3718.9,0.1895]
[1753491151118,2.9529627,3719.0,3718.9,0.6157]
[1753491151314,2.4153027,3719.0,3718.9,1.1233]
[1753491151515,0.6532027,3719.0,3718.9,2.28117]
[1753491152118,0.6221,3719.6,3719.5,0.92488]
[1753491152323,0.6221,3719.6,3719.5,2.28432871]
[1753491152324,1.0672,3719.6,3719.5,2.28432871]
[1753491152516,3.40899738,3719.9,3719.8,1.54504]
[1753491152717,3.40899738,3719.9,3719.8,2.28428871]
[1753491153122,1.9621,3719.9,3719.8,2.28428871]
[1753491153516,0.5094,3719.9,3719.8,2.28428871]
[1753491153723,0.2,3719.9,3719.8,2.28428871]
[1753491157721,0.2,3719.9,3719.8,2.28538871]
[1753491158823,0.018,3720.3,3720.2,0.53748]
[1753491159028,0.3132,3720.3,3720.2,2.28432871]
[1753491159217,0.018,3720.3,3720.2,2.28432871]
[1753491159625,1.44940855,3721.0,3720.9,0.73898]
[1753491159928,0.2952,3721.2,3721.1,1.54495]
[1753491160126,1.92919651,3721.7,3721.3,1.0076]
[1753491160127,1.44940855,3721.5,3721.3,1.0076]
[1753491160319,1.44940855,3721.6,3721.5,1.54489]
[1753491160521,1.44940855,3721.7,3721.6,0.93818]
[1753491160721,1.44940855,3721.8,3721.7,1.54377]
[1753491160921,1.64940855,3721.9,3721.8,1.54375]
[1753491161123,0.2,3721.9,3721.8,1.89404783]
[1753491161817,0.4952,3721.9,3721.8,1.89404783]
[1753491162625,0.2,3721.9,3721.8,1.89404783]
[1753491163223,0.685,3722.6,3722.5,0.93805]
[1753491163423,0.685,3722.6,3722.5,1.97599871]
[1753491163628,0.685,3722.6,3722.5,2.28289871]
[1753491163822,1.7027,3722.6,3722.5,2.28289871]
[1753491164220,1.7027,3722.6,3722.5,2.63184049]
[1753491164625,0.9802,3722.6,3722.5,2.63184049]
[1753491164821,0.7862,3722.6,3722.5,2.63184049]
[1753491165030,0.2952,3722.8,3722.7,0.93802]
[1753491165424,2.23981,3722.8,3722.7,0.4009]
[1753491165627,2.23981,3722.8,3722.7,0.6996]
[1753491166331,1.7027,3722.8,3722.7,1.23672]
[1753491167031,2.23981,3722.8,3722.7,0.6996]
[1753491167228,1.26184,3722.6,3722.5,1.23834871]
[1753491167424,0.685,3722.3,3722.2,1.27643871]
[1753491167625,1.7027,3722.3,3722.2,1.47693871]
[1753491167830,1.7027,3722.3,3722.2,1.97603871]
[1753491168222,0.685,3722.1,3722.0,0.73772]
[1753491168529,1.7027,3722.1,3722.0,0.73772]
[1753491169431,1.22222,3722.0,3721.9,1.03794871]
[1753491169632,2.23992,3722.0,3721.9,0.73924871]
[1753491170026,2.23992,3722.0,3721.9,0.93974871]
[1753491170331,2.23992,3722.0,3721.9,1.47698871]
[1753491170522,2.23992,3722.0,3721.9,1.27648871]
[1753491170926,2.23992,3722.0,3721.9,0.73924871]
[1753491171332,2.23992,3722.0,3721.9,1.97608871]
[1753491171532,2.23992,3722.0,3721.9,1.43884871]
[1753491172432,2.23992,3722.0,3721.9,1.97608871]
[1753491172628,1.7027,3722.0,3721.9,1.97608871]
[1753491173232,2.23992,3722.0,3721.9,1.97608871]
[1753491173634,1.7027,3722.0,3721.9,1.97608871]
[1753491175037,1.4097,3722.0,3721.9,1.67738871]
[1753491175236,1.7027,3722.0,3721.9,1.97608871]
[1753491176536,2.23992,3722.0,3721.9,0.53724]
[1753491177631,1.7027,3722.0,3721.9,0.53724]
[1753491178434,1.7027,3722.0,3721.9,0.88530944]
[1753491178627,1.75292,3722.0,3721.9,0.88530944]
[1753491178826,2.23992,3722.0,3721.9,0.88530944]
[1753491179326,1.7027,3722.0,3721.9,0.88530944]
[1753491181041,2.23992,3722.0,3721.9,0.88530944]
[1753491182036,1.7027,3722.0,3721.9,1.38450944]
[1753491182242,1.7027,3722.0,3721.9,1.58490944]
[1753491182433,0.2952,3722.0,3721.9,2.63105815]
[1753491182741,1.7027,3722.0,3721.9,2.63105815]
[1753491188644,0.2952,3722.0,3721.9,2.633785]
[1753491189245,1.0222,3722.2,3722.1,0.94571]
[1753491189446,1.5088,3722.2,3722.1,1.91680629]
[1753491190242,2.16889416,3722.2,3722.1,1.91680629]
[1753491190445,1.7014,3722.4,3722.3,1.25468]
[1753491190745,2.36150556,3722.4,3722.3,2.035725]
[1753491191141,2.36150556,3722.4,3722.3,1.627225]
[1753491191339,2.36150556,3722.4,3722.3,0.88797629]
[1753491192150,2.89866556,3722.4,3722.3,0.88797629]
[1753491193148,2.36150556,3722.4,3722.3,0.88797629]
[1753491193551,4.29070207,3722.4,3722.3,0.88797629]
[1753491194049,2.89866556,3722.4,3722.3,0.88797629]
[1753491194451,2.89866556,3722.4,3722.3,0.89549898]
[1753491194749,2.36150556,3722.4,3722.3,0.89549898]
[1753491195646,2.89866556,3722.4,3722.3,0.89549898]
[1753491196852,2.89866556,3722.4,3722.3,0.35831898]
[1753491197153,2.89866556,3722.4,3721.7,3.2078]
[1753491197154,0.6792,3721.9,3721.7,0.53726]
[1753491197450,1.7014,3721.8,3721.7,0.53726]
[1753491197641,2.36150556,3721.8,3721.7,0.53726]
[1753491197846,3.81167085,3721.8,3721.7,0.53726]
[1753491198042,2.89876556,3721.8,3721.7,0.53726]
[1753491198449,4.34830975,3721.8,3721.7,0.53726]
[1753491198644,2.23867,3721.7,3721.6,0.53727]
[1753491198852,2.89877556,3721.7,3721.6,0.53727]
[1753491199047,2.36150556,3721.7,3721.6,0.53727]
[1753491199556,2.36150556,3721.7,3721.6,0.89567]
[1753491199852,2.89877556,3721.7,3721.6,0.89567]
[1753491200749,2.89877556,3721.7,3721.6,0.53727]
[1753491203254,2.89877556,3721.7,3721.6,0.89567]
[1753491203454,2.89877556,3721.7,3721.6,0.53727]
[1753491203849,2.89877556,3721.7,3721.6,1.27651871]
[1753491204250,2.23867,3721.7,3721.6,1.63491871]
[1753491204451,2.23867,3721.7,3721.6,1.27651871]
[1753491204653,1.21649,3721.6,3721.5,0.53729]
[1753491204850,2.23869,3721.6,3721.5,0.53729]
[1753491205351,2.23869,3721.6,3721.1,1.61325]
[1753491205352,1.7014,3721.2,3721.1,1.61325]
[1753491205754,1.7014,3721.2,3721.1,1.92125]
[1753491206250,2.23874,3721.2,3721.1,1.30425]
[1753491206649,2.23874,3721.2,3721.1,0.53735]
[1753491206850,1.21658,3721.0,3720.9,0.53738]
[1753491207153,2.23878,3721.0,3720.9,0.53738]
[1753491207653,2.23878,3720.9,3720.8,0.53739]
[1753491208558,0.6792,3720.7,3720.3,1.04824871]
[1753491208852,1.7014,3720.5,3720.4,1.92135]
[1753491209048,1.7014,3720.5,3720.4,2.27493943]
[1753491209253,2.23884,3720.5,3720.4,2.27493943]
[1753491209653,1.7014,3720.5,3720.4,2.27493943]
[1753491210556,2.23884,3720.5,3720.4,2.27493943]
[1753491210855,2.23884,3720.5,3720.4,0.71198943]
[1753491211861,2.23884,3720.5,3720.4,0.35358943]
[1753491212458,5.44664,3720.5,3720.4,0.35358943]
[1753491213855,5.44664,3720.5,3720.4,0.71198943]
[1753491214361,5.44664,3720.5,3720.4,1.73748943]
[1753491216454,5.44664,3720.5,3720.4,1.12048943]
[1753491218059,5.44664,3720.5,3720.4,0.35358943]
[1753491220663,1.2223,3720.1,3720.0,0.9484]
[1753491220869,1.7378,3720.1,3720.0,2.25745709]
[1753491221563,2.27529,3720.1,3720.0,2.55195709]
[1753491221764,1.7378,3720.1,3720.0,3.2912058]
[1753491222062,2.27529,3720.1,3720.0,3.2912058]
[1753491222262,1.7378,3720.1,3720.0,3.2912058]
[1753491222754,2.27529,3720.1,3720.0,3.2912058]
[1753491223865,2.27529,3720.1,3720.0,2.9967058]
[1753491224966,2.27529,3720.1,3720.0,3.2912058]
[1753491224967,1.7378,3720.1,3720.0,3.2912058]
[1753491225361,2.2753,3720.1,3720.0,3.2912058]
[1753491225866,1.7378,3720.1,3720.0,3.2912058]
[1753491226163,0.2895,3720.1,3720.0,3.2912058]
[1753491226666,0.5848,3720.3,3720.2,1.24688]
[1753491226863,0.2895,3720.3,3720.2,2.55193709]
[1753491227663,0.5848,3720.3,3720.2,2.55193709]
[1753491228663,0.2895,3720.3,3720.2,2.55193709]
[1753491230468,0.7746,3720.3,3720.2,2.55193709]
[1753491230667,1.5474,3720.3,3720.2,2.55193709]
[1753491231167,1.98576,3720.4,3720.3,1.20336]
[1753491231367,1.98576,3720.4,3720.3,2.9974658]
[1753491231670,5.48306,3720.4,3720.3,2.9974658]
[1753491232369,5.48306,3720.4,3720.3,2.99808361]
[1753491232868,5.48306,3720.4,3720.3,2.46062361]
[1753491233262,2.27526,3720.4,3720.3,2.99809361]
[1753491233568,2.27526,3720.4,3720.3,1.7213749]
[1753491233963,2.27526,3720.4,3720.3,2.2588449]
[1753491234468,2.93447091,3720.4,3720.3,1.7213749]
[1753491234969,2.93447091,3720.4,3720.3,2.2588449]
[1753491236767,2.93447091,3720.4,3720.3,2.25959936]
[1753491238373,2.93447091,3720.4,3720.3,2.99884807]
[1753491239369,2.93447091,3720.4,3720.3,3.29334807]
[1753491240370,2.93446091,3720.4,3720.3,3.29334807]
[1753491240571,1.92881091,3720.4,3720.3,3.29334807]
[1753491241174,2.46626091,3720.4,3720.3,3.29334807]
[1753491241376,1.92881091,3720.4,3720.3,3.29334807]
[1753491241573,2.93446091,3720.4,3720.3,3.29334807]
[1753491243479,2.93446091,3720.4,3720.3,2.75587807]
[1753491243980,2.93446091,3720.4,3720.3,2.46137807]
[1753491244481,2.93446091,3720.4,3720.3,2.99884807]
[1753491245779,2.93446091,3720.4,3720.3,2.46137807]
[1753491248282,2.65406091,3720.4,3720.3,2.44257807]
[1753491248478,2.93966091,3720.4,3720.3,2.44257807]
[1753491249481,2.93966091,3720.4,3720.3,2.75207807]
[1753491251684,2.93966091,3720.4,3720.3,3.28954807]
[1753491251980,2.93966091,3720.4,3720.3,2.44679813]
[1753491252186,2.93966091,3720.4,3720.3,0.35104942]
[1753491252388,2.93966091,3720.4,3720.3,0.70914942]
[1753491252585,2.93966091,3720.4,3720.3,1.00804942]
[1753491252784,2.93966091,3720.4,3720.3,1.19784942]
[1753491253086,2.93966091,3720.4,3720.3,1.38804942]
[1753491253784,2.93966091,3720.4,3720.3,1.69834942]
[1753491254290,2.40221091,3720.4,3720.3,2.23581942]
[1753491254685,2.40221091,3720.4,3720.3,3.28456813]
[1753491255485,2.93966091,3720.4,3720.3,3.28456813]
[1753491256888,2.93966091,3720.4,3720.3,2.74709813]
[1753491257189,2.93966091,3720.4,3720.3,2.43759813]
[1753491257384,2.93966091,3720.4,3720.3,2.13869813]